bitfinex-derivatives/quotes_BTCF0:USTF0_20210409
["timestamp","ask_amount","ask_price","bid_price","bid_amount"]
[1617941998184,1.91908469,58145.0,58144.0,0.30012728]
[1617942002791,0.91908469,58145.0,58144.0,0.30012728]
[1617942003635,0.91908469,58145.0,58144.0,0.43256728]
[1617942003993,0.01029505,58145.0,58144.0,1.06195004]
[1617942004522,0.30589557,58146.0,58144.0,1.06195004]
[1617942004523,0.00519823,58146.0,58144.0,4.07281932]
[1617942004899,0.08029453,58147.0,58145.0,1.2504986]
[1617942004900,0.07,58147.0,58145.0,1.2504986]
[1617942005402,0.07,58147.0,58146.0,1.366787]
[1617942005796,0.07,58147.0,58146.0,1.42817087]
[1617942006296,3.061,58147.0,58146.0,1.42817087]
[1617942006696,3.061,58147.0,58146.0,4.21757087]
[1617942007197,3.061,58147.0,58146.0,4.30964266]
[1617942007497,3.061,58147.0,58146.0,5.30964266]
[1617942007696,3.061,58147.0,58146.0,4.30964266]
[1617942008095,0.07,58147.0,58146.0,2.01839415]
[1617942008797,0.07,58147.0,58146.0,1.92632236]
[1617942010002,0.07,58147.0,58146.0,1.42817087]
[1617942016706,0.00519639,58152.0,58146.0,1.42817087]
[1617942017308,0.00519639,58152.0,58151.0,0.65724186]
[1617942017510,0.00519639,58152.0,58151.0,0.76449841]
[1617942017709,0.00519639,58152.0,58151.0,1.03449841]
[1617942017909,3.22879639,58152.0,58151.0,0.96449841]
[1617942018217,4.2236,58152.0,58151.0,0.33600285]
[1617942018711,4.83608328,58152.0,58151.0,0.33600285]
[1617942018910,1.61248328,58152.0,58151.0,0.10725655]
[1617942019210,1.61248328,58152.0,58151.0,3.76195655]
[1617942019409,1.71973983,58152.0,58151.0,3.76195655]
[1617942024015,1.61248328,58152.0,58151.0,3.76195655]
[1617942024416,1.61248328,58152.0,58151.0,0.10725655]
[1617942026720,0.61248328,58152.0,58151.0,0.10725655]
[1617942029725,0.61248328,58152.0,58151.0,3.63555655]
[1617942029925,0.61248328,58152.0,58151.0,3.78198655]
[1617942030427,0.36710528,58153.0,58151.0,4.14074215]
[1617942030625,0.3671042,58155.0,58151.0,4.14074215]
[1617942031224,0.01029604,58152.0,58151.0,3.78198655]
[1617942031826,0.00519891,58153.0,58151.0,4.57849897]
[1617942032427,0.00519891,58153.0,58152.0,1.21987641]
[1617942033128,0.00519889,58154.0,58152.0,1.21987641]
[1617942033327,0.00519889,58153.0,58152.0,1.21987641]
[1617942034628,0.01029593,58153.0,58152.0,0.68977196]
[1617942035330,0.00519893,58153.0,58152.0,0.68977196]
[1617942035733,0.00519893,58153.0,58152.0,1.12782582]
[1617942038336,0.00519893,58153.0,58152.0,0.68977196]
[1617942038854,0.01029529,58153.0,58152.0,0.68977196]
[1617942039437,0.00519862,58153.0,58152.0,0.68977196]
[1617942041640,0.01029438,58153.0,58152.0,0.68977196]
[1617942042442,0.36703966,58156.0,58152.0,0.68977196]
[1617942042842,0.36703966,58156.0,58154.0,0.35850745]
[1617942043243,0.61256743,58156.0,58155.0,0.27]
[1617942043647,0.61256743,58156.0,58154.0,0.27]
[1617942044146,0.36704706,58155.0,58154.0,0.27]
[1617942044344,0.36704706,58155.0,58153.0,0.27]
[1617942044645,0.36704706,58155.0,58154.0,0.27]
[1617942044944,0.36705068,58154.0,58153.0,0.27]
[1617942045444,0.36705068,58154.0,58151.0,0.46605374]
[1617942045644,3.67215655,58152.0,58151.0,0.46605374]
[1617942046045,4.03922292,58152.0,58151.0,0.37725655]
[1617942046546,4.28476977,58152.0,58151.0,0.37725655]
[1617942048350,4.5907651,58152.0,58151.0,0.67659203]
[1617942049053,4.5907651,58152.0,58151.0,0.37725655]
[1617942049453,5.03953297,58152.0,58151.0,0.37725655]
[1617942056666,5.03953297,58152.0,58151.0,0.10725655]
[1617942056866,2.47463297,58152.0,58148.0,0.29943636]
[1617942057066,2.47463297,58152.0,58151.0,3.4943]
[1617942057266,1.47463297,58152.0,58151.0,3.4943]
[1617942057467,0.51007634,58156.0,58151.0,3.4943]
[1617942057667,0.51007634,58156.0,58155.0,0.10725655]
[1617942057867,0.87840605,58156.0,58155.0,2.77625655]
[1617942058067,0.87840605,58156.0,58155.0,2.98625655]
[1617942058271,0.87840605,58156.0,58155.0,3.44352877]
[1617942058272,0.30604524,58156.0,58155.0,3.44352877]
[1617942059071,0.30604524,58156.0,58155.0,5.14352877]
[1617942059268,0.30621636,58157.0,58155.0,6.58157987]
[1617942059668,0.30621636,58157.0,58156.0,2.2480484]
[1617942059669,0.00520386,58157.0,58156.0,2.2480484]
[1617942059969,0.00520386,58157.0,58156.0,3.9480484]
[1617942060169,0.00520372,58159.0,58156.0,4.2180484]
[1617942060569,0.00520372,58159.0,58157.0,1.0]
[1617942060769,0.00520368,58162.0,58158.0,4.29074636]
[1617942061069,0.00520368,58162.0,58161.0,1.0]
[1617942061369,0.01030533,58163.0,58161.0,1.0]
[1617942061370,0.00520357,58163.0,58161.0,2.83116]
[1617942061570,0.00520357,58163.0,58161.0,3.10116]
[1617942061771,0.0103051,58164.0,58163.0,1.0]
[1617942061772,0.00520357,58164.0,58163.0,1.0]
[1617942062070,0.00520357,58164.0,58163.0,1.7]
[1617942062269,0.00520357,58164.0,58163.0,2.97]
[1617942062672,0.00520351,58165.0,58163.0,4.21633559]
[1617942062871,0.00520351,58165.0,58164.0,1.0]
[1617942063071,0.00520349,58166.0,58164.0,3.94627583]
[1617942063286,0.00520349,58166.0,58165.0,2.7647]
[1617942063473,0.00520349,58166.0,58165.0,5.71095498]
[1617942063671,0.00520349,58166.0,58165.0,6.98095498]
[1617942065677,0.00520349,58166.0,58165.0,5.98095498]
[1617942066078,0.01030498,58166.0,58165.0,6.98095498]
[1617942067678,0.0052033,58167.0,58165.0,6.98095498]
[1617942067978,0.0052033,58167.0,58165.0,4.21625498]
[1617942068180,0.0052033,58167.0,58166.0,1.24581147]
[1617942068381,0.0052033,58167.0,58166.0,1.44581147]
[1617942068582,0.01030457,58168.0,58166.0,1.71581147]
[1617942068978,0.01030457,58168.0,58167.0,1.15398634]
[1617942069180,0.01030457,58168.0,58167.0,1.35398634]
[1617942069380,0.01030457,58168.0,58167.0,1.62398634]
[1617942071885,0.75570755,58182.0,58167.0,2.18693988]
[1617942071886,0.00518707,58173.0,58167.0,2.18693988]
[1617942072082,0.00518707,58173.0,58168.0,3.3667]
[1617942072384,0.00518707,58173.0,58171.0,0.29701513]
[1617942072586,0.00518707,58173.0,58172.0,0.2]
[1617942072786,0.01027248,58174.0,58172.0,0.47]
[1617942072787,0.00518707,58174.0,58172.0,0.47]
[1617942073184,0.00518707,58174.0,58172.0,0.76697072]
[1617942073585,0.00518707,58174.0,58172.0,0.47]
[1617942073786,0.00518707,58174.0,58173.0,0.10725655]
[1617942074086,0.00518707,58174.0,58173.0,0.25402655]
[1617942074286,0.00518707,58174.0,58173.0,0.52402655]
[1617942074988,0.01027246,58175.0,58173.0,0.52402655]
[1617942075389,0.01027246,58176.0,58174.0,0.19481292]
[1617942075789,0.01027246,58176.0,58175.0,0.27]
[1617942075989,0.01027246,58176.0,58175.0,0.46481292]
[1617942076389,0.01027246,58176.0,58175.0,0.19481292]
[1617942076690,0.01027246,58176.0,58175.0,0.46481292]
[1617942077094,0.01027219,58178.0,58175.0,3.79861292]
[1617942078191,0.01027219,58178.0,58175.0,4.09531167]
[1617942078391,0.01027219,58178.0,58175.0,5.09531167]
[1617942078592,0.01027219,58178.0,58175.0,4.79861292]
[1617942078792,0.01027219,58178.0,58175.0,3.79861292]
[1617942078994,0.01026839,58179.0,58176.0,1.0]
[1617942079193,0.01026839,58179.0,58177.0,0.19481292]
[1617942079392,0.01026839,58179.0,58177.0,0.46481292]
[1617942079597,0.01026839,58180.0,58177.0,0.46481292]
[1617942079795,0.01026839,58180.0,58179.0,0.10725655]
[1617942079995,0.01026839,58180.0,58179.0,0.30206947]
[1617942080195,0.01026839,58180.0,58179.0,0.57206947]
[1617942080397,0.30510309,58181.0,58179.0,0.57206947]
[1617942080695,0.30510327,58180.0,58179.0,0.57206947]
[1617942080895,0.30509926,58181.0,58179.0,0.57206947]
[1617942081395,0.30509926,58181.0,58180.0,1.0]
[1617942081596,0.30509926,58181.0,58180.0,1.19481292]
[1617942081798,0.30509926,58181.0,58180.0,0.46481292]
[1617942081998,0.01026823,58181.0,58180.0,0.46481292]
[1617942082402,0.30509778,58181.0,58180.0,1.46481292]
[1617942082799,0.30509778,58181.0,58180.0,0.46481292]
[1617942083000,0.14,58183.0,58180.0,0.46481292]
[1617942083001,0.01025706,58182.0,58180.0,0.46481292]
[1617942083399,0.44476681,58183.0,58180.0,0.46481292]
[1617942083400,0.15025703,58183.0,58180.0,0.46481292]
[1617942084301,0.15025703,58183.0,58181.0,1.0]
[1617942084503,0.15025703,58183.0,58182.0,1.0]
[1617942084717,0.15025703,58183.0,58182.0,2.77]
[1617942085205,0.14,58183.0,58182.0,2.77]
[1617942088708,0.14,58183.0,58182.0,1.27]
[1617942091111,0.14,58183.0,58182.0,0.27]
[1617942091511,0.14,58183.0,58181.0,0.27]
[1617942091911,0.14,58183.0,58182.0,0.27]
[1617942092111,0.14,58183.0,58182.0,1.0]
[1617942093012,0.14,58183.0,58182.0,1.27]
[1617942093314,0.14,58183.0,58182.0,0.27]
[1617942093812,0.14,58183.0,58179.0,0.10725655]
[1617942093813,0.14,58183.0,58181.0,0.27]
[1617942094015,0.14,58183.0,58179.0,0.10725655]
[1617942094016,0.10725655,58182.0,58180.0,0.01]
[1617942094215,0.10725655,58182.0,58179.0,0.10725655]
[1617942094614,0.10725655,58182.0,58180.0,0.27]
[1617942095116,0.10725655,58182.0,58180.0,3.936]
[1617942096025,0.14,58183.0,58181.0,3.699]
[1617942096233,0.14,58183.0,58181.0,3.82569]
[1617942096418,0.14,58183.0,58182.0,0.27]
[1617942097921,0.14,58183.0,58182.0,3.3795]
[1617942098123,0.14,58183.0,58182.0,3.1095]
[1617942098324,0.14,58183.0,58182.0,3.3795]
[1617942098524,0.14,58183.0,58182.0,4.3795]
[1617942098724,0.14,58183.0,58182.0,4.1095]
[1617942098925,0.14,58183.0,58182.0,4.3795]
[1617942099525,0.14,58183.0,58182.0,3.3795]
[1617942099928,0.14,58183.0,58182.0,4.3795]
[1617942100231,0.14,58183.0,58182.0,4.49197]
[1617942100729,0.14,58183.0,58182.0,3.49197]
[1617942101532,0.14,58183.0,58182.0,0.38247]
[1617942102134,0.14,58183.0,58182.0,0.27]
[1617942102533,0.14,58183.0,58180.0,0.27]
[1617942102934,0.14,58183.0,58182.0,0.27]
[1617942103134,0.14,58183.0,58182.0,1.0]
[1617942103535,0.14,58183.0,58182.0,0.27]
[1617942103734,0.14,58183.0,58179.0,0.10725655]
[1617942103935,0.14,58183.0,58181.0,0.27]
[1617942104135,0.14,58183.0,58180.0,1.40263]
[1617942104536,0.14,58183.0,58181.0,0.27]
[1617942105838,0.14,58183.0,58180.0,0.27]
[1617942106038,0.24707,58183.0,58180.0,0.27]
[1617942106240,0.24707,58183.0,58182.0,0.27]
[1617942106438,0.24707,58183.0,58180.0,0.27]
[1617942106839,0.24707,58183.0,58182.0,0.27]
[1617942107039,0.24707,58183.0,58180.0,1.27]
[1617942107241,0.24707,58183.0,58181.0,0.01]
[1617942107443,0.24707,58183.0,58182.0,0.26]
[1617942107943,0.24707,58183.0,58182.0,3.5189]
[1617942108142,0.24707,58183.0,58182.0,3.7889]
[1617942108442,0.14,58183.0,58182.0,3.7889]
[1617942109744,0.14,58183.0,58182.0,4.7889]
[1617942110546,0.14,58183.0,58182.0,3.7889]
[1617942111145,0.14,58183.0,58182.0,4.7889]
[1617942111946,0.14,58183.0,58182.0,3.7889]
[1617942112246,0.81372792,58183.0,58182.0,4.44299885]
[1617942112946,0.81372792,58183.0,58182.0,5.44299885]
[1617942113147,1.05914469,58183.0,58182.0,5.44299885]
[1617942115852,1.05914469,58183.0,58182.0,4.44299885]
[1617942118050,0.91914469,58183.0,58182.0,4.44299885]
[1617942118750,0.67372792,58183.0,58182.0,4.44299885]
[1617942119251,0.919141,58183.0,58182.0,4.44299885]
[1617942127362,0.919141,58183.0,58182.0,5.44299885]
[1617942127563,0.919141,58183.0,58182.0,4.44299885]
[1617942132367,0.919141,58183.0,58182.0,4.8793268]
[1617942140374,0.919141,58183.0,58182.0,4.44299885]
[1617942142877,0.919141,58183.0,58182.0,4.8793846]
[1617942143377,0.919141,58183.0,58182.0,4.44299885]
[1617942143779,0.67372792,58183.0,58182.0,4.44299885]
[1617942144179,1.36873191,58183.0,58182.0,4.44299885]
[1617942145082,0.91914454,58183.0,58182.0,4.87945268]
[1617942147884,0.91914454,58183.0,58182.0,5.87945268]
[1617942148285,0.91914454,58183.0,58182.0,4.87945268]
[1617942148685,0.91914454,58183.0,58182.0,5.87945268]
[1617942149689,0.91914454,58183.0,58182.0,4.87945268]
[1617942155793,0.91914454,58183.0,58182.0,5.00784268]
[1617942157598,0.91914454,58183.0,58182.0,4.87945268]
[1617942158806,0.91914454,58183.0,58182.0,4.98670923]
[1617942166009,1.36890408,58183.0,58182.0,4.98670923]
[1617942167411,1.12348746,58183.0,58182.0,4.98670923]
[1617942167911,0.67372792,58183.0,58182.0,4.98670923]
[1617942169012,1.12351383,58183.0,58182.0,4.98670923]
[1617942176722,1.12351383,58183.0,58182.0,4.5502554]
[1617942180429,1.12351383,58183.0,58182.0,4.98679792]
[1617942181532,0.67372792,58183.0,58182.0,4.98679792]
[1617942181830,0.91912723,58183.0,58182.0,4.98679792]
[1617942182430,0.67372792,58183.0,58182.0,4.98679792]
[1617942182830,0.91913015,58183.0,58182.0,4.98679792]
[1617942183233,0.67372792,58183.0,58182.0,4.98679792]
[1617942183736,1.12342484,58183.0,58182.0,4.98679792]
[1617942186437,1.12342484,58183.0,58182.0,4.5502554]
[1617942187238,1.12342484,58183.0,58182.0,4.98677699]
[1617942187637,1.12342484,58183.0,58182.0,4.5502554]
[1617942188238,1.12342484,58183.0,58182.0,4.98678023]
[1617942188745,1.12342484,58183.0,58182.0,4.5502554]
[1617942191356,1.12342484,58183.0,58182.0,1.0313554]
[1617942191544,4.10702484,58183.0,58182.0,1.0313554]
[1617942191743,5.10702484,58183.0,58182.0,1.0313554]
[1617942192344,5.10702484,58183.0,58182.0,0.67457421]
[1617942192345,6.23159435,58183.0,58182.0,0.67457421]
[1617942193144,6.3388509,58183.0,58182.0,0.67457421]
[1617942193545,5.3388509,58183.0,58182.0,0.67457421]
[1617942193747,4.82783744,58183.0,58182.0,1.03310116]
[1617942193945,5.82783744,58183.0,58182.0,1.03310116]
[1617942195655,5.82783744,58183.0,58182.0,0.67457421]
[1617942195656,6.33881003,58183.0,58182.0,0.67457421]
[1617942197356,7.83881003,58183.0,58182.0,0.67457421]
[1617942197551,6.33881003,58183.0,58182.0,0.67457421]
[1617942199751,5.82783744,58183.0,58182.0,0.67457421]
[1617942201454,7.32783744,58183.0,58182.0,0.67457421]
[1617942202655,7.52783744,58183.0,58182.0,0.67457421]
[1617942202898,7.52783744,58183.0,58182.0,0.40457421]
[1617942203458,8.0384917,58183.0,58182.0,0.10725655]
[1617942205862,7.8384917,58183.0,58182.0,0.10725655]
[1617942206464,8.0384917,58183.0,58182.0,0.10725655]
[1617942207468,5.0548917,58183.0,58182.0,0.10725655]
[1617942208297,5.0548917,58183.0,58178.0,0.29908577]
[1617942208666,3.5483,58179.0,58178.0,0.29908577]
[1617942208867,7.30513031,58179.0,58177.0,0.29914936]
[1617942209173,7.30513031,58179.0,58178.0,0.27]
[1617942209370,6.18183,58179.0,58176.0,0.29922069]
[1617942209875,7.81572459,58179.0,58177.0,0.01]
[1617942210267,1.12421661,58178.0,58176.0,0.30947502]
[1617942210488,1.5,58177.0,58176.0,0.30947502]
[1617942210669,1.5,58177.0,58174.0,0.35933044]
[1617942210868,1.5,58177.0,58176.0,0.27]
[1617942211070,1.60725655,58177.0,58176.0,0.27]
[1617942211271,1.60725655,58177.0,58175.0,0.27]
[1617942211472,3.09759966,58177.0,58176.0,0.27]
[1617942211672,3.09759966,58177.0,58173.0,0.29915413]
[1617942211874,2.72940929,58177.0,58174.0,0.26]
[1617942212072,3.72940929,58177.0,58176.0,0.27]
[1617942212273,1.60725655,58177.0,58176.0,0.27]
[1617942212573,1.60725655,58177.0,58174.0,0.27]
[1617942212772,3.09760866,58177.0,58176.0,0.01]
[1617942212973,3.09760866,58177.0,58172.0,0.29919654]
[1617942213174,4.09760866,58177.0,58173.0,0.27]
[1617942213374,3.72941607,58177.0,58176.0,0.27]
[1617942213573,3.72941607,58177.0,58172.0,0.29919654]
[1617942213775,1.12213997,58174.0,58173.0,0.56924922]
[1617942213973,1.12213997,58174.0,58173.0,0.29924922]
[1617942214174,0.67330438,58174.0,58173.0,0.29924922]
[1617942214375,0.67330438,58174.0,58173.0,0.56924922]
[1617942214575,0.91876269,58174.0,58173.0,0.56924922]
[1617942215375,1.36759931,58174.0,58173.0,0.56924922]
[1617942215976,2.36759931,58174.0,58173.0,0.56924922]
[1617942216477,2.73578859,58174.0,58173.0,0.56924922]
[1617942217677,2.73578859,58174.0,58173.0,0.27]
[1617942217678,3.86759931,58174.0,58173.0,0.27]
[1617942218177,3.86759931,58174.0,58172.0,0.29943139]
[1617942218378,4.74591152,58174.0,58171.0,0.10725655]
[1617942218897,1.12234018,58172.0,58171.0,0.10725655]
[1617942219077,2.82234018,58172.0,58171.0,0.10725655]
[1617942219277,3.06782172,58172.0,58167.0,0.3001777]
[1617942219778,2.12235188,58168.0,58167.0,0.3001777]
[1617942220383,2.36783465,58168.0,58167.0,0.3001777]
[1617942221178,3.9750912,58168.0,58167.0,0.3001777]
[1617942221980,4.34331798,58168.0,58167.0,0.3001777]
[1617942222382,3.52617085,58168.0,58165.0,0.10725655]
[1617942222580,6.88317085,58168.0,58165.0,0.10725655]
[1617942222881,3.52617085,58168.0,58165.0,0.10725655]
[1617942223080,3.52617085,58168.0,58166.0,0.27]
[1617942223282,0.24548443,58167.0,58166.0,0.27]
[1617942223482,5.47834443,58167.0,58166.0,0.27]
[1617942223686,6.1506997,58167.0,58166.0,0.27]
[1617942224283,5.90521527,58167.0,58166.0,0.27]
[1617942225985,4.40521527,58167.0,58166.0,0.27]
[1617942226886,4.40521527,58167.0,58166.0,0.57000194]
[1617942227288,4.03848529,58167.0,58166.0,0.57000194]
[1617942232393,3.03848529,58167.0,58166.0,0.57000194]
[1617942232794,4.03848529,58167.0,58166.0,0.57000194]
[1617942233192,3.03848529,58167.0,58166.0,0.57000194]
[1617942233393,4.03848529,58167.0,58166.0,0.57000194]
[1617942238102,3.73286,58167.0,58166.0,0.57000194]
[1617942238302,4.03846176,58167.0,58166.0,0.92980286]
[1617942238701,4.03846176,58167.0,58166.0,0.57000194]
[1617942239000,3.03846176,58167.0,58166.0,0.57000194]
[1617942239201,3.03846176,58167.0,58166.0,0.92993314]
[1617942239400,4.03846176,58167.0,58166.0,0.92993314]
[1617942240001,4.03846176,58167.0,58166.0,0.57000194]
[1617942244305,4.03846176,58167.0,58166.0,0.92991645]
[1617942249709,1.42896176,58167.0,58166.0,0.92991645]
[1617942249909,1.42896176,58167.0,58166.0,3.92091645]
[1617942250151,1.30560176,58167.0,58166.0,3.92091645]
[1617942250346,0.30560176,58167.0,58166.0,3.92091645]
[1617942251111,0.41317533,58168.0,58166.0,3.92091645]
[1617942251513,0.30591878,58168.0,58166.0,3.92091645]
[1617942251736,1.44863717,58175.0,58167.0,1.16046278]
[1617942251737,0.36722775,58170.0,58167.0,1.16046278]
[1617942251941,0.30603916,58168.0,58167.0,1.16046278]
[1617942252413,0.01029958,58169.0,58167.0,1.17046278]
[1617942252816,1.0,58183.0,58168.0,1.09815083]
[1617942252817,0.01029958,58171.0,58168.0,1.09815083]
[1617942253316,0.3060305,58172.0,58170.0,1.09814909]
[1617942253631,0.01029956,58171.0,58170.0,1.09814909]
[1617942254018,0.01029956,58171.0,58170.0,1.10814909]
[1617942254518,0.01029928,58172.0,58170.0,1.16950885]
[1617942254918,0.01029928,58172.0,58171.0,1.15912988]
[1617942255119,0.01029928,58172.0,58171.0,1.27619988]
[1617942255319,0.01029928,58172.0,58171.0,4.13125643]
[1617942255719,0.01029928,58172.0,58171.0,1.65345643]
[1617942255920,0.01029928,58172.0,58171.0,1.74549596]
[1617942256119,2.64779928,58172.0,58171.0,1.74549596]
[1617942256421,2.64779928,58172.0,58171.0,1.65345643]
[1617942258021,2.94352059,58172.0,58171.0,1.65345643]
[1617942258421,2.64779928,58172.0,58171.0,1.65345643]
[1617942259326,2.9437396,58172.0,58171.0,1.65345643]
[1617942262024,2.9437396,58172.0,58171.0,1.53638643]
[1617942263025,2.64780018,58172.0,58171.0,1.53638643]
[1617942263426,2.94354811,58172.0,58171.0,1.53638643]
[1617942264426,2.6375,58172.0,58171.0,1.53638643]
[1617942264725,2.94355004,58172.0,58171.0,1.53638643]
[1617942265926,3.04652004,58172.0,58171.0,1.53638643]
[1617942266727,2.74047,58172.0,58171.0,1.53638643]
[1617942271035,2.75076669,58172.0,58171.0,1.53638643]
[1617942271436,2.74047,58172.0,58171.0,1.53638643]
[1617942272238,2.74047,58172.0,58171.0,1.09727839]
[1617942272435,3.04641405,58172.0,58171.0,1.09727839]
[1617942272636,0.40891405,58172.0,58171.0,1.09727839]
[1617942272837,0.30594405,58172.0,58171.0,1.09727839]
[1617942273037,0.30594405,58172.0,58171.0,1.25306839]
[1617942274038,0.30594405,58172.0,58171.0,1.69278653]
[1617942274943,0.30600577,58173.0,58171.0,1.69278653]
[1617942275141,3.7047,58172.0,58171.0,1.69278653]
[1617942275342,3.7047,58172.0,58171.0,1.53699653]
[1617942275541,3.7047,58172.0,58171.0,0.37725655]
[1617942275943,4.01071245,58172.0,58171.0,1.56879182]
[1617942276343,4.01071245,58172.0,58171.0,1.47674893]
[1617942277748,4.01071245,58172.0,58171.0,1.03695198]
[1617942278250,4.3779183,58172.0,58171.0,1.03695198]
[1617942279071,4.01071245,58172.0,58171.0,1.03695198]
[1617942281256,0.30601245,58172.0,58171.0,1.03695198]
[1617942282358,0.67341041,58172.0,58171.0,1.47710451]
[1617942282758,0.67341041,58172.0,58171.0,1.03695198]
[1617942283159,4.24011041,58172.0,58171.0,1.03695198]
[1617942283860,4.48555995,58172.0,58171.0,1.03695198]
[1617942284461,5.48555995,58172.0,58171.0,1.03695198]
[1617942286262,5.48555995,58172.0,58171.0,1.4775617]
[1617942286661,5.48555995,58172.0,58171.0,1.03695198]
[1617942287461,4.48555995,58172.0,58171.0,1.03695198]
[1617942290166,0.91885995,58172.0,58171.0,1.03695198]
[1617942290565,0.91885995,58172.0,58171.0,3.24245655]
[1617942290765,0.91885995,58172.0,58171.0,3.90361709]
[1617942290766,0.67341041,58172.0,58171.0,3.90361709]
[1617942291166,0.91886059,58172.0,58171.0,4.43634941]
[1617942291569,0.67341041,58172.0,58171.0,4.43634941]
[1617942291971,0.30601245,58172.0,58171.0,4.43634941]
[1617942292173,0.30601245,58172.0,58171.0,1.57114941]
[1617942292369,2.88481245,58172.0,58171.0,1.57114941]
[1617942292875,2.88481245,58172.0,58171.0,1.47910559]
[1617942293271,3.25231606,58172.0,58171.0,1.47910559]
[1617942293770,3.25231606,58172.0,58171.0,1.03841709]
[1617942294170,3.25231606,58172.0,58171.0,1.47954899]
[1617942296174,3.70187817,58172.0,58171.0,1.47954899]
[1617942296973,1.12307817,58172.0,58171.0,1.47954899]
[1617942297877,0.67351606,58172.0,58171.0,1.47954899]
[1617942298879,1.12307711,58172.0,58171.0,1.47954899]
[1617942300478,0.67351606,58172.0,58171.0,1.47954899]
[1617942301077,0.91897075,58172.0,58171.0,1.47954899]
[1617942301378,0.67351606,58172.0,58171.0,1.47954899]
[1617942308885,1.12312689,58172.0,58171.0,1.47954899]
[1617942309285,3.71322689,58172.0,58171.0,1.47954899]
[1617942309685,4.71322689,58172.0,58171.0,1.47954899]
[1617942309886,4.95868334,58172.0,58171.0,1.47954899]
[1617942310286,4.95868334,58172.0,58171.0,1.03841709]
[1617942311088,4.95868334,58172.0,58171.0,0.66116054]
[1617942312088,3.95868334,58172.0,58171.0,0.30052752]
[1617942312287,4.95868334,58172.0,58171.0,0.30052752]
[1617942312588,4.95868334,58172.0,58171.0,0.3618952]
[1617942312988,2.36858334,58172.0,58171.0,0.30052752]
[1617942313390,2.87938753,58172.0,58171.0,0.30052752]
[1617942317394,4.37938753,58172.0,58171.0,0.30052752]
[1617942317894,4.37938753,58172.0,58170.0,0.30127962]
[1617942318295,4.74761001,58172.0,58170.0,0.30127962]
[1617942318694,2.24842775,58171.0,58170.0,0.30127962]
[1617942319294,3.24842775,58171.0,58170.0,0.30127962]
[1617942319495,3.24842775,58171.0,58168.0,0.30148087]
[1617942319719,0.10725655,58169.0,58168.0,0.30148087]
[1617942319913,1.84600814,58169.0,58168.0,0.30148087]
[1617942320398,3.09150255,58169.0,58168.0,0.30148087]
[1617942321697,2.58064946,58169.0,58168.0,0.30148087]
[1617942322498,2.94888684,58169.0,58167.0,0.30122154]
[1617942322997,1.3684887,58168.0,58167.0,0.30122154]
[1617942324500,2.3684887,58168.0,58167.0,0.30122154]
[1617942331410,2.3684887,58168.0,58166.0,0.30153071]
[1617942331810,1.36849464,58167.0,58166.0,0.30153071]
[1617942332909,2.36849464,58167.0,58166.0,0.30153071]
[1617942333611,2.36849464,58167.0,58165.0,0.30137422]
[1617942334013,2.36849464,58167.0,58164.0,0.30139423]
[1617942334014,1.36789161,58166.0,58164.0,0.30139423]
[1617942334513,1.12239321,58165.0,58164.0,0.30139423]
[1617942335114,2.12239321,58165.0,58164.0,0.30139423]
[1617942335812,2.36788995,58165.0,58164.0,0.30139423]
[1617942342624,2.36788995,58165.0,58163.0,0.30140709]
[1617942343023,1.36791573,58164.0,58162.0,0.40864055]
[1617942343323,2.36791573,58164.0,58162.0,0.301384]
[1617942343523,2.12242659,58163.0,58162.0,0.301384]
[1617942343924,2.22968314,58163.0,58162.0,0.301384]
[1617942344123,2.22968314,58163.0,58160.0,0.30117815]
[1617942344124,2.47518608,58163.0,58160.0,0.30117815]
[1617942344526,1.12195929,58161.0,58159.0,0.3012738]
[1617942344926,1.12195868,58160.0,58159.0,0.3012738]
[1617942345427,2.12195868,58160.0,58159.0,0.3012738]
[1617942345827,2.36746678,58160.0,58159.0,0.3012738]
[1617942346627,3.86746678,58160.0,58159.0,0.3012738]
[1617942346827,2.86746678,58160.0,58159.0,0.3012738]
[1617942347030,4.2357665,58160.0,58158.0,0.3013799]
[1617942347652,3.24616359,58159.0,58150.0,0.30184132]
[1617942347828,0.10725655,58151.0,58150.0,0.30184132]
[1617942348050,1.75457655,58151.0,58150.0,0.30184132]
[1617942348330,3.876794,58151.0,58147.0,0.30199269]
[1617942348532,3.876794,58151.0,58144.0,0.36239123]
[1617942348533,4.12235659,58151.0,58146.0,0.30202607]
[1617942348730,1.0,58148.0,58146.0,0.30202607]
[1617942348937,1.12226175,58147.0,58146.0,0.30202607]
[1617942349131,1.12226175,58147.0,58145.0,0.30210757]
[1617942349432,2.73619287,58147.0,58145.0,0.30210757]
[1617942349632,1.0,58146.0,58145.0,0.30210757]
[1617942349834,2.36783193,58146.0,58145.0,0.30210757]
[1617942350233,1.91894806,58146.0,58145.0,0.30210757]
[1617942350733,1.91894806,58146.0,58145.0,0.66438501]
[1617942350932,0.91894806,58146.0,58145.0,0.66438501]
[1617942351535,0.30608964,58146.0,58145.0,0.66438501]
[1617942352563,0.30608964,58146.0,58145.0,1.1067119]
[1617942354941,0.30608964,58146.0,58145.0,1.2132419]
[1617942355140,0.01028814,58147.0,58145.0,0.77091501]
[1617942355539,0.01028814,58147.0,58145.0,0.83230252]
[1617942355840,0.01028814,58147.0,58146.0,0.72206633]
[1617942356040,0.01028814,58147.0,58146.0,0.82932288]
[1617942356442,0.30569009,58148.0,58146.0,0.82932288]
[1617942356842,0.30570698,58147.0,58146.0,0.40756499]
[1617942359948,0.30569909,58148.0,58146.0,0.767615]
[1617942360146,0.30569909,58148.0,58146.0,0.861415]
[1617942360347,0.30569909,58148.0,58147.0,0.36141179]
[1617942361651,0.30569909,58148.0,58147.0,0.30002414]
[1617942362051,0.6725342,58148.0,58146.0,0.40741395]
[1617942362257,0.8081742,58148.0,58146.0,0.40741395]
[1617942362554,0.30571413,58147.0,58146.0,0.40741395]
[1617942363154,0.91811611,58147.0,58146.0,0.10725655]
[1617942363556,0.67255218,58147.0,58146.0,0.10725655]
[1617942363755,1.67255218,58147.0,58146.0,0.10725655]
[1617942363955,1.91811633,58147.0,58146.0,0.10725655]
[1617942364557,0.91811633,58147.0,58146.0,0.10725655]
[1617942365265,0.30571413,58147.0,58146.0,0.40740147]
[1617942366659,1.30571413,58147.0,58146.0,0.40740147]
[1617942368261,1.67252479,58147.0,58146.0,0.40740147]
[1617942368660,1.67229901,58147.0,58146.0,0.40740147]
[1617942368861,1.67229901,58147.0,58146.0,0.10725655]
[1617942369060,0.67229901,58147.0,58146.0,0.10725655]
[1617942369861,0.78588901,58147.0,58146.0,0.10725655]
[1617942370062,1.78588901,58147.0,58146.0,0.10725655]
[1617942370462,2.03145978,58147.0,58146.0,0.10725655]